[Event "Czech Open GM 2020"]
[Site "Pardubice"]
[Date "2020.09.27"]
[Round "8.17"]
[White "Siekanski, Janusz"]
[Black "Finek, Vaclav"]
[Result "1-0"]
[ECO "D87"]
[WhiteElo "2184"]
[BlackElo "2344"]
[Annotator "ChessBase"]
[PlyCount "83"]
[EventDate "2020.09.21"]
[EventCountry "CZE"]
[SourceTitle "playchess.com"]
[Source "ChessBase"]
[SourceQuality "1"]
[TimeControl "40/5400+30:1800+30"]

1. d4 Nf6 2. c4 g6 3. Nc3 d5 4. cxd5 Nxd5 5. e4 {[%emt 0:00:28]} Nxc3 {[%emt 0:00:05]} 6. bxc3 {[%emt 0:00:12]} Bg7 {[%emt 0:00:05]} 7. Bc4 {[%emt 0:00:32]} c5 {[%emt 0:00:18]} 8. Ne2 {[%emt 0:00:22]} O-O {[%emt 0:00:33]} 9. O-O {[%emt 0:00:14]} Nc6 {[%emt 0:00:06]} 10. Be3 {[%emt 0:00:16]} Bd7 {[%emt 0:01:55]} 11. Rc1 {[%emt 0:05:55]} Qc7 {[%emt 0:02:36]} 12. Qd2 {[%emt 0:03:57]} Rfd8 {[%emt 0:02:11]} 13. Bh6 {[%emt 0:03:08]} Bh8 {[%emt 0:13:22]} 14. h4 {[%emt 0:25:18]} Na5 {[%emt 0:13:27]} 15. Bd3 {[%emt 0:00:45]} Bg4 {[%emt 0:03:37]} 16. f3 {[%emt 0:04:46]} Be6 {[%emt 0:02:15]} 17. d5 {[%emt 0:03:41]} c4 {[%emt 0:08:54]} 18. Bc2 {[%emt 0:01:19]} Bd7 {[%emt 0:02:38]} 19. h5 {[%emt 0:05:51]} Be8 {[%emt 0:05:59]} 20. Bf4 {[%emt 0:10:17]} Qc8 {[%emt 0:07:41]} 21. hxg6 {[%emt 0:01:42]} hxg6 {[%emt 0:00:28]} 22. Kf2 {[%emt 0:01:28]} Qc5+ {[%emt 0:06:47]} 23. Be3 {[%emt 0:00:49]} Qd6 {[%emt 0:00:43]} 24. Rh1 {[%emt 0:01:59]} Bg7 {[%emt 0:03:58]} 25. Rh4 {[%emt 0:05:49]} e6 {[%emt 0:12:20]} 26. Rch1 {[%emt 0:01:23]} Kf8 {[%emt 0:01:38]} 27. Rh7 {[%emt 0:12:48]} Bf6 {[%emt 0:04:20]} 28. f4 {[%emt 0:05:14]} e5 {[%emt 0:03:18]} 29. fxe5 {[%emt 0:00:12]} Bxe5 {[%emt 0:00:58]} 30. Bg5 {[%emt 0:02:16]} Bf6 {[%emt 0:02:24]} 31. Qe3 {[%emt 0:01:19]} Bb5 {[%emt 0:02:47]} 32. Nd4 {[%emt 0:00:04]} Bd7 {[%emt 0:00:30]} 33. Ne6+ {[%emt 0:00:54]} Bxe6 {[%emt 0:00:41]} 34. Bxf6 {[%emt 0:00:11]} Ke8 {[%emt 0:00:05]} 35. Rh8+ {[%emt 0:00:25]} Kd7 {[%emt 0:00:05]} 36. Rxd8+ {[%emt 0:00:33]} Rxd8 37. dxe6+ {[%emt 0:00:17]} Kxe6 {[%emt 0:00:12]} 38. Bxd8 {[%emt 0:00:27]} Qxd8 {[%emt 0:00:01]} 39. Qh3+ {[%emt 0:00:30]} Ke5 {[%emt 0:00:24]} 40. Qg3+ {[%emt 0:00:15]} Ke6 {[%emt 0:00:05]} 41. Rd1 {[%emt 0:01:30]} Qe7 {[%emt 0:02:27]} 42. Qg4+ {[%emt 0:01:11]} 1-0

[Event "Czech Open GM 2020"]
[Site "Pardubice"]
[Date "2020.09.27"]
[Round "8.18"]
[White "Dehmel, Jens"]
[Black "Rabatin, Jakub"]
[Result "1/2-1/2"]
[ECO "E95"]
[WhiteElo "2040"]
[BlackElo "2291"]
[Annotator "ChessBase"]
[PlyCount "116"]
[EventDate "2020.09.21"]
[EventCountry "CZE"]
[SourceTitle "playchess.com"]
[Source "ChessBase"]
[SourceQuality "1"]
[TimeControl "40/5400+30:1800+30"]

1. d4 {[%emt 0:36:14]} Nf6 {[%emt 0:00:07]} 2. c4 {[%emt 0:00:40]} g6 {[%emt 0:00:11]} 3. Nc3 {[%emt 0:00:12]} Bg7 {[%emt 0:00:11]} 4. e4 {[%emt 0:00:08]} d6 {[%emt 0:00:04]} 5. Nf3 {[%emt 0:00:13]} O-O {[%emt 0:00:08]} 6. Be2 {[%emt 0:00:10]} e5 {[%emt 0:00:21]} 7. O-O {[%emt 0:00:13]} Na6 {[%emt 0:07:41]} 8. Re1 {[%emt 0:00:20]} exd4 {[%emt 0:04:17]} 9. Nxd4 {[%emt 0:00:11]} Nc5 {[%emt 0:00:28]} 10. Bf1 {[%emt 0:00:14]} Re8 {[%emt 0:00:53]} 11. f3 {[%emt 0:00:17]} a5 {[%emt 0:07:32]} 12. Be3 {[%emt 0:05:36]} c6 {[%emt 0:23:27]} 13. Qd2 {[%emt 0:01:09]} a4 {[%emt 0:00:26]} 14. b4 {[%emt 0:05:53]} axb3 {[%emt 0:10:24]} 15. axb3 {[%emt 0:00:12]} Rxa1 {[%emt 0:01:11]} 16. Rxa1 {[%emt 0:00:02]} Nfd7 {[%emt 0:17:52]} 17. Rb1 {[%emt 0:02:42]} Ne5 {[%emt 0:00:26]} 18. b4 {[%emt 0:03:43]} Ne6 {[%emt 0:00:16]} 19. Nb3 {[%emt 0:03:27]} Qf6 {[%emt 0:03:42]} 20. Rc1 {[%emt 0:04:13]} g5 {[%emt 0:02:23]} 21. b5 {[%emt 0:06:01]} Nf4 {[%emt 0:03:22]} 22. bxc6 {[%emt 0:10:13]} bxc6 {[%emt 0:00:08]} 23. Na5 {[%emt 0:08:33]} h5 {[%emt 0:03:06]} 24. Rd1 {[%emt 0:03:02]} Be6 {[%emt 0:02:28]} 25. Kh1 {[%emt 0:01:17]} Bh6 {[%emt 0:04:04]} 26. Nb7 {[%emt 0:02:01]} g4 {[%emt 0:06:40]} 27. g3 {[%emt 0:05:05]} Nxf3 {[%emt 0:00:07]} 28. Qc1 {[%emt 0:00:01]} Bg7 {[%emt 0:01:56]} 29. gxf4 {[%emt 0:04:26]} Qxc3 {[%emt 0:00:04]} 30. Qxc3 {[%emt 0:00:10]} Bxc3 31. Nxd6 {[%emt 0:00:12]} Ra8 {[%emt 0:00:51]} 32. e5 {[%emt 0:02:54]} Bb4 {[%emt 0:01:04]} 33. Ne4 {[%emt 0:00:22]} Ra2 {[%emt 0:00:20]} 34. Bg2 {[%emt 0:01:14]} Nh4 {[%emt 0:00:33]} 35. Bf1 {[%emt 0:00:19]} Nf3 {[%emt 0:00:34]} 36. Bg2 {[%emt 0:00:06]} Bxc4 {[%emt 0:00:21]} 37. Nf6+ {[%emt 0:00:42]} Kg7 {[%emt 0:00:22]} 38. Nxh5+ {[%emt 0:00:25]} Kg6 {[%emt 0:00:15]} 39. Ng3 {[%emt 0:01:12]} Bd5 {[%emt 0:00:20]} 40. f5+ {[%emt 0:03:53]} Kh7 {[%emt 0:00:13]} 41. Nh5 {[%emt 0:03:42]} Be7 {[%emt 0:12:20]} 42. f6 {[%emt 0:05:52]} Bb4 {[%emt 0:08:56]} 43. Nf4 {[%emt 0:00:07]} Be4 {[%emt 0:04:52]} 44. h3 {[%emt 0:11:12]} gxh3 {[%emt 0:02:06]} 45. Nxh3 {[%emt 0:00:01]} Re2 {[%emt 0:01:00]} 46. Nf2 {[%emt 0:03:20]} Bd5 {[%emt 0:01:09]} 47. Ng4 {[%emt 0:00:20]} Nxe5 {[%emt 0:03:01]} 48. Bxd5 {[%emt 0:07:21]} Nxg4 {[%emt 0:00:30]} 49. Be4+ {[%emt 0:01:02]} Kg8 {[%emt 0:00:04]} 50. Rd8+ {[%emt 0:03:40]} Bf8 {[%emt 0:00:02]} 51. Bc5 {[%emt 0:00:30]} Nf2+ {[%emt 0:01:54]} 52. Kg1 {[%emt 0:02:40]} Nxe4 {[%emt 0:00:28]} 53. Rxf8+ {[%emt 0:03:20]} Kh7 {[%emt 0:00:05]} 54. Rxf7+ {[%emt 0:01:47]} Kg6 {[%emt 0:00:17]} 55. Rc7 {[%emt 0:01:22]} Nxc5 {[%emt 0:00:19]} 56. Rxc6 {[%emt 0:00:05]} Ne6 {[%emt 0:00:16]} 57. Kf1 {[%emt 0:00:12]} Re5 {[%emt 0:00:11]} 58. Kf2 {[%emt 0:00:09]} Kxf6 {[%emt 0:00:05]} 1/2-1/2

[Event "Czech Open GM 2020"]
[Site "Pardubice"]
[Date "2020.09.27"]
[Round "8.19"]
[White "Terziev, Dimo"]
[Black "Mica, Marek"]
[Result "0-1"]
[ECO "C11"]
[WhiteElo "2157"]
[BlackElo "2290"]
[Annotator "ChessBase"]
[PlyCount "82"]
[EventDate "2020.09.21"]
[EventCountry "CZE"]
[SourceTitle "playchess.com"]
[Source "ChessBase"]
[SourceQuality "1"]
[TimeControl "40/5400+30:1800+30"]

1. e4 {[%emt 0:05:45]} e6 {[%emt 0:00:13]} 2. d4 {[%emt 0:00:11]} d5 {[%emt 0:00:12]} 3. Nc3 {[%emt 0:00:07]} Nf6 {[%emt 0:01:26]} 4. e5 {[%emt 0:00:09]} Nfd7 {[%emt 0:00:09]} 5. f4 {[%emt 0:00:09]} c5 {[%emt 0:00:12]} 6. Nf3 {[%emt 0:00:07]} Nc6 {[%emt 0:00:15]} 7. Be3 {[%emt 0:00:16]} h6 {[%emt 0:00:35]} 8. Qd2 {[%emt 0:01:11]} g5 {[%emt 0:01:06]} 9. fxg5 {[%emt 0:03:27]} cxd4 {[%emt 0:00:28]} 10. Bxd4 {[%emt 0:01:12]} hxg5 {[%emt 0:01:50]} 11. g4 {[%emt 0:12:36]} Bg7 {[%emt 0:08:29]} 12. Bb5 {[%emt 0:10:06]} Nxd4 {[%emt 0:08:39]} 13. Qxd4 {[%emt 0:00:28]} a6 {[%emt 0:00:29]} 14. Bxd7+ {[%emt 0:01:04]} Bxd7 {[%emt 0:00:15]} 15. O-O-O {[%emt 0:00:36]} Rc8 {[%emt 0:01:59]} 16. Qe3 {[%emt 0:04:53]} Rh3 {[%emt 0:07:37]} 17. Kb1 {[%emt 0:06:47]} Rc4 {[%emt 0:05:24]} 18. Qxg5 {[%emt 0:06:33]} Qxg5 {[%emt 0:00:16]} 19. Nxg5 {[%emt 0:00:13]} Rh6 {[%emt 0:03:05]} 20. Rdf1 {[%emt 0:04:40]} f6 {[%emt 0:00:36]} 21. exf6 {[%emt 0:08:33]} Bxf6 {[%emt 0:00:14]} 22. Nf7 {[%emt 0:00:58]} Kxf7 {[%emt 0:01:31]} 23. g5 {[%emt 0:00:06]} Rg6 {[%emt 0:00:43]} 24. h4 {[%emt 0:00:09]} Kg7 {[%emt 0:00:27]} 25. gxf6+ {[%emt 0:03:17]} Rxf6 {[%emt 0:00:13]} 26. Rfg1+ {[%emt 0:06:04]} Rg6 {[%emt 0:01:42]} 27. Re1 {[%emt 0:04:42]} Rf4 {[%emt 0:07:32]} 28. h5 {[%emt 0:02:16]} Rh6 {[%emt 0:00:18]} 29. b3 {[%emt 0:08:11]} Rf5 {[%emt 0:01:37]} 30. Ne2 {[%emt 0:00:11]} e5 {[%emt 0:04:18]} 31. Rhg1+ {[%emt 0:01:16]} Kf6 {[%emt 0:01:10]} 32. Rg8 {[%emt 0:05:56]} Rfxh5 {[%emt 0:22:56]} 33. Ng3 {[%emt 0:00:07]} Rh3 {[%emt 0:00:47]} 34. Rf1+ {[%emt 0:00:06]} Ke6 {[%emt 0:00:31]} 35. Rg7 {[%emt 0:01:33]} Bc6 {[%emt 0:02:42]} 36. Rf8 {[%emt 0:05:00]} Rf6 {[%emt 0:01:00]} 37. Rc8 {[%emt 0:00:12]} Rh2 {[%emt 0:02:29]} 38. Rcc7 {[%emt 0:00:45]} Kd6 {[%emt 0:01:15]} 39. Rc8 {[%emt 0:00:25]} a5 {[%emt 0:03:58]} 40. a4 {[%emt 0:01:02]} Rff2 {[%emt 0:00:40]} 41. c4 {[%emt 0:01:27]} dxc4 {[%emt 0:04:58]} 0-1

[Event "Czech Open GM 2020"]
[Site "Pardubice"]
[Date "2020.09.27"]
[Round "8.20"]
[White "Simek, Petr"]
[Black "Wahlund, Max"]
[Result "1-0"]
[ECO "A36"]
[WhiteElo "2289"]
[BlackElo "2153"]
[Annotator "ChessBase"]
[PlyCount "95"]
[EventDate "2020.09.21"]
[EventCountry "CZE"]
[SourceTitle "playchess.com"]
[Source "ChessBase"]
[SourceQuality "1"]
[TimeControl "40/5400+30:1800+30"]

1. c4 {[%emt 0:05:43]} c5 {[%emt 0:00:18]} 2. g3 {[%emt 0:00:24]} Nc6 {[%emt 0:00:21]} 3. Bg2 {[%emt 0:00:06]} e5 {[%emt 0:00:06]} 4. Nc3 {[%emt 0:00:58]} g6 {[%emt 0:00:12]} 5. a3 {[%emt 0:00:32]} a5 {[%emt 0:01:52]} 6. e3 {[%emt 0:01:01]} Bg7 {[%emt 0:01:22]} 7. Nge2 {[%emt 0:00:34]} Nge7 {[%emt 0:00:23]} 8. d3 {[%emt 0:04:16]} d6 {[%emt 0:00:09]} 9. Bd2 {[%emt 0:00:09]} Be6 {[%emt 0:00:26]} 10. Nd5 {[%emt 0:00:14]} O-O {[%emt 0:08:26]} 11. Nec3 {[%emt 0:01:10]} Rb8 {[%emt 0:02:22]} 12. O-O {[%emt 0:02:26]} Qd7 {[%emt 0:00:16]} 13. Qa4 {[%emt 0:20:27]} Bh3 {[%emt 0:21:59]} 14. Nxe7+ {[%emt 0:03:14]} Nxe7 {[%emt 0:00:15]} 15. Qxa5 {[%emt 0:00:32]} Bxg2 {[%emt 0:00:25]} 16. Kxg2 {[%emt 0:00:07]} Qc6+ {[%emt 0:00:11]} 17. f3 {[%emt 0:03:19]} d5 {[%emt 0:03:52]} 18. e4 {[%emt 0:01:23]} dxc4 {[%emt 0:00:31]} 19. dxc4 {[%emt 0:00:09]} b6 {[%emt 0:03:01]} 20. Qb5 {[%emt 0:01:44]} Qxb5 {[%emt 0:00:24]} 21. cxb5 {[%emt 0:00:47]} Rfd8 {[%emt 0:00:59]} 22. Be3 {[%emt 0:01:36]} Kf8 {[%emt 0:05:09]} 23. Kf2 {[%emt 0:01:29]} Rd7 {[%emt 0:00:58]} 24. Ke2 {[%emt 0:01:56]} Rbd8 {[%emt 0:00:17]} 25. Rfd1 {[%emt 0:01:04]} Ke8 {[%emt 0:00:14]} 26. a4 {[%emt 0:04:04]} Rxd1 {[%emt 0:03:10]} 27. Rxd1 {[%emt 0:00:04]} Rxd1 {[%emt 0:00:05]} 28. Kxd1 {[%emt 0:00:06]} Kd7 {[%emt 0:00:19]} 29. Kc2 {[%emt 0:00:30]} f5 {[%emt 0:06:24]} 30. Kd3 {[%emt 0:01:23]} Ke6 {[%emt 0:01:20]} 31. b3 {[%emt 0:05:41]} Bf8 {[%emt 0:01:32]} 32. Bg5 {[%emt 0:11:25]} Nc8 {[%emt 0:00:35]} 33. Nd5 {[%emt 0:00:08]} Kd7 {[%emt 0:01:44]} 34. Nf6+ {[%emt 0:03:57]} Ke6 {[%emt 0:00:06]} 35. Nxh7 {[%emt 0:00:54]} Be7 {[%emt 0:01:41]} 36. h4 {[%emt 0:03:54]} fxe4+ {[%emt 0:01:25]} 37. fxe4 {[%emt 0:00:16]} Nd6 {[%emt 0:02:12]} 38. Bxe7 {[%emt 0:01:33]} Kxe7 {[%emt 0:00:02]} 39. Ng5 {[%emt 0:00:06]} Kf6 {[%emt 0:00:37]} 40. Nf3 {[%emt 0:00:28]} c4+ {[%emt 0:02:47]} 41. bxc4 {[%emt 0:30:20]} Nb7 {[%emt 0:31:07]} 42. Kc3 {[%emt 0:07:42]} Nc5 {[%emt 0:00:25]} 43. Kb4 {[%emt 0:00:05]} Nxe4 {[%emt 0:03:12]} 44. a5 {[%emt 0:00:06]} bxa5+ {[%emt 0:00:27]} 45. Kxa5 {[%emt 0:00:06]} Nc5 {[%emt 0:00:28]} 46. Kb6 {[%emt 0:01:42]} e4 {[%emt 0:01:26]} 47. Ne1 {[%emt 0:01:44]} Nd7+ {[%emt 0:00:45]} 48. Kc7 {[%emt 0:01:50]} 1-0

[Event "Czech Open GM 2020"]
[Site "Pardubice"]
[Date "2020.09.28"]
[Round "9.1"]
[White "Vrolijk, Liam"]
[Black "Van Foreest, Lucas"]
[Result "0-1"]
[ECO "A92"]
[WhiteElo "2481"]
[BlackElo "2531"]
[Annotator "ChessBase"]
[PlyCount "60"]
[EventDate "2020.09.21"]
[EventCountry "CZE"]
[SourceTitle "playchess.com"]
[Source "ChessBase"]
[SourceQuality "1"]
[TimeControl "40/5400+30:1800+30"]

1. c4 {[%emt 0:00:00]} f5 {[%emt 0:00:14]} 2. d4 {[%emt 0:00:35]} Nf6 {[%emt 0:00:28]} 3. g3 {[%emt 0:00:19]} d6 {[%emt 0:01:06]} 4. Nf3 {[%emt 0:01:21]} e6 {[%emt 0:00:12]} 5. Bg2 {[%emt 0:00:17]} Be7 {[%emt 0:00:19]} 6. Nc3 {[%emt 0:00:29]} O-O {[%emt 0:00:39]} 7. b3 {[%emt 0:00:05]} Ne4 {[%emt 0:06:32]} 8. Bb2 {[%emt 0:00:07]} b6 {[%emt 0:01:08]} 9. Nd2 {[%emt 0:12:04]} d5 {[%emt 0:00:06]} 10. cxd5 {[%emt 0:01:56]} exd5 {[%emt 0:01:37]} 11. O-O {[%emt 0:00:21]} Bb7 {[%emt 0:00:45]} 12. Nf3 {[%emt 0:02:23]} Nd7 {[%emt 0:00:28]} 13. e3 {[%emt 0:02:30]} a5 {[%emt 0:24:47]} 14. Rc1 {[%emt 0:05:03]} Nxc3 {[%emt 0:00:04]} 15. Bxc3 {[%emt 0:03:31]} c6 {[%emt 0:00:56]} 16. Qc2 {[%emt 0:02:36]} Bd6 {[%emt 0:00:10]} 17. Ne1 {[%emt 0:04:22]} Qe7 {[%emt 0:00:11]} 18. Nd3 {[%emt 0:00:32]} Rae8 {[%emt 0:01:28]} 19. Rb1 {[%emt 0:01:04]} Rf6 {[%emt 0:04:26]} 20. b4 {[%emt 0:02:22]} axb4 {[%emt 0:00:07]} 21. Bxb4 {[%emt 0:00:06]} Ra8 {[%emt 0:02:23]} 22. Rfc1 {[%emt 0:01:19]} Bxb4 {[%emt 0:03:39]} 23. Nxb4 {[%emt 0:02:08]} Qd6 {[%emt 0:12:56]} 24. a4 {[%emt 0:03:55]} Ra5 {[%emt 0:02:01]} 25. Qb3 {[%emt 0:02:53]} Rf8 {[%emt 0:08:05]} 26. Rc3 {[%emt 0:01:51]} Kh8 {[%emt 0:03:21]} 27. Rbc1 {[%emt 0:04:23]} c5 {[%emt 0:00:20]} 28. dxc5 {[%emt 0:06:53]} Nxc5 {[%emt 0:00:41]} 29. Qc2 {[%emt 0:01:11]} Nxa4 {[%emt 0:00:57]} 30. Rc7 {[%emt 0:01:02]} Nc5 {[%emt 0:04:28]} 0-1

[Event "Czech Open GM 2020"]
[Site "Pardubice"]
[Date "2020.09.28"]
[Round "9.2"]
[White "Stocek, Jiri"]
[Black "Kevlishvili, Robby"]
[Result "1/2-1/2"]
[ECO "D30"]
[WhiteElo "2595"]
[BlackElo "2478"]
[Annotator "ChessBase"]
[PlyCount "76"]
[EventDate "2020.09.21"]
[EventCountry "CZE"]
[SourceTitle "playchess.com"]
[Source "ChessBase"]
[SourceQuality "1"]
[TimeControl "40/5400+30:1800+30"]

1. d4 {[%emt 0:00:00]} d5 {[%emt 0:05:00]} 2. c4 {[%emt 0:01:33]} e6 {[%emt 0:00:06]} 3. Nf3 {[%emt 0:02:21]} a6 {[%emt 0:00:26]} 4. Nc3 {[%emt 0:04:17]} dxc4 {[%emt 0:00:55]} 5. a4 {[%emt 0:17:56]} Nc6 {[%emt 0:00:06]} 6. e3 {[%emt 0:00:12]} Na5 {[%emt 0:00:05]} 7. Ne5 {[%emt 0:01:27]} Nf6 {[%emt 0:07:13]} 8. Bxc4 {[%emt 0:04:01]} Nxc4 {[%emt 0:01:50]} 9. Nxc4 {[%emt 0:00:04]} b6 {[%emt 0:04:57]} 10. e4 {[%emt 0:01:17]} Bb7 {[%emt 0:00:42]} 11. f3 {[%emt 0:00:39]} Be7 {[%emt 0:02:04]} 12. Be3 {[%emt 0:01:12]} O-O {[%emt 0:00:31]} 13. O-O {[%emt 0:00:37]} Qd7 {[%emt 0:06:36]} 14. Qb3 {[%emt 0:03:25]} Rfd8 {[%emt 0:02:06]} 15. Rfd1 {[%emt 0:00:57]} Qe8 {[%emt 0:03:33]} 16. Rac1 {[%emt 0:01:42]} Rac8 {[%emt 0:01:36]} 17. Ne2 {[%emt 0:16:08]} Bc6 {[%emt 0:01:20]} 18. Ra1 {[%emt 0:00:57]} Nd7 {[%emt 0:08:11]} 19. Nf4 {[%emt 0:02:45]} Bb7 {[%emt 0:06:01]} 20. Nd3 {[%emt 0:03:33]} Nb8 {[%emt 0:01:48]} 21. a5 {[%emt 0:05:27]} b5 {[%emt 0:07:32]} 22. Nce5 {[%emt 0:00:42]} Nc6 {[%emt 0:00:15]} 23. Nxc6 {[%emt 0:00:17]} Bxc6 {[%emt 0:00:11]} 24. Rac1 {[%emt 0:04:23]} b4 {[%emt 0:03:53]} 25. Qc2 {[%emt 0:00:37]} Bb5 {[%emt 0:01:22]} 26. Nc5 {[%emt 0:00:41]} Rb8 {[%emt 0:02:59]} 27. b3 {[%emt 0:03:47]} Bd6 {[%emt 0:03:05]} 28. Nd3 {[%emt 0:02:08]} c6 {[%emt 0:00:41]} 29. Nb2 {[%emt 0:02:03]} Bc7 {[%emt 0:03:16]} 30. Nc4 {[%emt 0:00:08]} h6 {[%emt 0:00:16]} 31. Bf2 {[%emt 0:01:12]} Qe7 {[%emt 0:01:19]} 32. Ne5 {[%emt 0:04:31]} Bxe5 {[%emt 0:01:32]} 33. dxe5 {[%emt 0:00:04]} Rxd1+ {[%emt 0:00:03]} 34. Rxd1 {[%emt 0:01:05]} Rd8 {[%emt 0:00:05]} 35. f4 {[%emt 0:03:14]} Rd7 {[%emt 0:01:34]} 36. h3 {[%emt 0:05:19]} Qd8 {[%emt 0:00:06]} 37. Rxd7 {[%emt 0:00:11]} Qxd7 {[%emt 0:00:07]} 38. Bc5 {[%emt 0:00:33]} Qd3 {[%emt 0:00:11]} 1/2-1/2

[Event "Czech Open GM 2020"]
[Site "Pardubice"]
[Date "2020.09.28"]
[Round "9.3"]
[White "Noe, Christopher"]
[Black "Mendonca, Leon Luke"]
[Result "1/2-1/2"]
[ECO "D46"]
[WhiteElo "2519"]
[BlackElo "2490"]
[Annotator "ChessBase"]
[PlyCount "128"]
[EventDate "2020.09.21"]
[EventCountry "CZE"]
[SourceTitle "playchess.com"]
[Source "ChessBase"]
[SourceQuality "1"]
[TimeControl "40/5400+30:1800+30"]

1. d4 {[%emt 0:00:43]} Nf6 {[%emt 0:00:00]} 2. c4 {[%emt 0:00:07]} c6 {[%emt 0:00:25]} 3. Nc3 {[%emt 0:01:22]} d5 {[%emt 0:00:17]} 4. Nf3 {[%emt 0:00:28]} e6 {[%emt 0:01:10]} 5. e3 {[%emt 0:01:33]} Nbd7 {[%emt 0:00:57]} 6. Qc2 {[%emt 0:01:58]} Bd6 {[%emt 0:01:48]} 7. Bd3 {[%emt 0:01:54]} O-O {[%emt 0:02:01]} 8. O-O {[%emt 0:00:24]} dxc4 {[%emt 0:01:01]} 9. Bxc4 {[%emt 0:00:11]} b5 {[%emt 0:00:46]} 10. Be2 {[%emt 0:03:24]} a6 {[%emt 0:03:52]} 11. Ng5 {[%emt 0:00:15]} Be7 {[%emt 0:03:57]} 12. Nge4 {[%emt 0:19:16]} Bb7 {[%emt 0:02:42]} 13. a3 {[%emt 0:01:10]} c5 {[%emt 0:23:05]} 14. Nxc5 {[%emt 0:01:41]} Nxc5 {[%emt 0:01:17]} 15. dxc5 {[%emt 0:00:06]} Bxc5 {[%emt 0:00:36]} 16. Nxb5 {[%emt 0:02:28]} Rc8 {[%emt 0:02:33]} 17. Nc3 {[%emt 0:04:58]} Bd6 {[%emt 0:07:15]} 18. h3 {[%emt 0:14:26]} Bb8 {[%emt 0:07:03]} 19. Qa4 {[%emt 0:05:02]} Qc7 {[%emt 0:07:57]} 20. f4 {[%emt 0:00:50]} Qb6 {[%emt 0:03:17]} 21. Qb4 {[%emt 0:13:54]} Qa7 {[%emt 0:06:20]} 22. Bf3 {[%emt 0:04:38]} Bxf3 {[%emt 0:01:54]} 23. Rxf3 {[%emt 0:00:02]} Rfd8 {[%emt 0:01:07]} 24. Qa4 {[%emt 0:03:36]} Qb7 {[%emt 0:10:16]} 25. Qc2 {[%emt 0:01:20]} Ba7 {[%emt 0:03:07]} 26. Bd2 {[%emt 0:00:18]} Rd7 {[%emt 0:00:42]} 27. Re1 {[%emt 0:01:18]} h6 {[%emt 0:02:57]} 28. Kh2 {[%emt 0:02:00]} Rcd8 {[%emt 0:02:50]} 29. Bc1 {[%emt 0:00:31]} e5 {[%emt 0:01:54]} 30. e4 {[%emt 0:07:09]} Bd4 {[%emt 0:00:57]} 31. f5 {[%emt 0:02:32]} Rc8 {[%emt 0:00:41]} 32. Qe2 {[%emt 0:04:37]} Rdc7 {[%emt 0:00:39]} 33. Qc2 {[%emt 0:01:17]} Bxc3 {[%emt 0:00:34]} 34. bxc3 {[%emt 0:00:16]} Rc4 {[%emt 0:00:26]} 35. Rfe3 {[%emt 0:00:38]} Qc6 {[%emt 0:00:28]} 36. Qf2 {[%emt 0:00:40]} Nxe4 {[%emt 0:00:36]} 37. Qf3 {[%emt 0:00:24]} Nf6 {[%emt 0:00:29]} 38. Qxc6 {[%emt 0:00:44]} R8xc6 {[%emt 0:00:10]} 39. Rxe5 {[%emt 0:00:17]} Rxc3 {[%emt 0:00:09]} 40. Bb2 {[%emt 0:00:28]} Rb3 {[%emt 0:00:56]} 41. R1e2 {[%emt 0:30:40]} h5 {[%emt 0:06:34]} 42. Rd2 {[%emt 0:00:00]} Rcb6 {[%emt 0:11:14]} 43. Rd8+ {[%emt 0:00:00]} Kh7 {[%emt 0:00:08]} 44. Bd4 {[%emt 0:00:00]} R6b5 {[%emt 0:07:05]} 45. Rxb5 {[%emt 0:00:00]} Rxb5 {[%emt 0:00:38]} 46. Ra8 {[%emt 0:00:00]} Ra5 {[%emt 0:01:52]} 47. Bb2 {[%emt 0:00:00]} Ne4 {[%emt 0:02:16]} 48. Ra7 {[%emt 0:00:00]} f6 {[%emt 0:00:31]} 49. Re7 {[%emt 0:00:00]} Ra4 {[%emt 0:00:37]} 50. Rc7 {[%emt 0:01:57]} h4 {[%emt 0:01:47]} 51. Kg1 {[%emt 0:00:05]} Kh6 {[%emt 0:01:31]} 52. Bc1+ {[%emt 0:00:39]} Kh7 {[%emt 0:00:36]} 53. Bb2 {[%emt 0:00:07]} Nd6 {[%emt 0:01:42]} 54. Rd7 {[%emt 0:03:32]} Nxf5 {[%emt 0:00:34]} 55. Bxf6 {[%emt 0:00:06]} Rxa3 {[%emt 0:00:25]} 56. Kf2 {[%emt 0:00:31]} Kg6 {[%emt 0:00:36]} 57. Be5 {[%emt 0:00:33]} Ra5 {[%emt 0:00:33]} 58. Bc3 {[%emt 0:00:46]} Ra3 {[%emt 0:00:32]} 59. Rc7 {[%emt 0:00:31]} Ra2+ {[%emt 0:00:34]} 60. Kf3 {[%emt 0:00:32]} Ra4 {[%emt 0:00:06]} 61. Rc6+ {[%emt 0:00:26]} Kf7 {[%emt 0:00:28]} 62. Rc7+ {[%emt 0:00:12]} Kg6 {[%emt 0:00:47]} 63. Rc6+ {[%emt 0:00:05]} Kf7 {[%emt 0:00:40]} 64. Rc7+ {[%emt 0:00:21]} Kg6 {[%emt 0:00:29]} 1/2-1/2

[Event "Czech Open GM 2020"]
[Site "Pardubice"]
[Date "2020.09.28"]
[Round "9.4"]
[White "Jarmula, Lukasz"]
[Black "Golubka, Petro"]
[Result "1-0"]
[ECO "E20"]
[WhiteElo "2444"]
[BlackElo "2488"]
[Annotator "ChessBase"]
[PlyCount "66"]
[EventDate "2020.09.21"]
[EventCountry "CZE"]
[SourceTitle "playchess.com"]
[Source "ChessBase"]
[SourceQuality "1"]
[TimeControl "40/5400+30:1800+30"]

1. d4 {[%emt 0:00:00]} Nf6 {[%emt 0:07:55]} 2. c4 {[%emt 0:00:00]} e6 {[%emt 0:00:30]} 3. Nc3 {[%emt 0:00:00]} Bb4 {[%emt 0:00:10]} 4. f3 {[%emt 0:00:00]} d5 {[%emt 0:07:02]} 5. a3 {[%emt 0:00:01]} Be7 {[%emt 0:00:09]} 6. e4 {[%emt 0:00:10]} dxe4 {[%emt 0:01:38]} 7. fxe4 {[%emt 0:00:10]} c5 {[%emt 0:00:05]} 8. d5 {[%emt 0:00:25]} exd5 {[%emt 0:00:26]} 9. exd5 {[%emt 0:01:03]} O-O {[%emt 0:02:45]} 10. Be2 {[%emt 0:08:51]} Re8 {[%emt 0:08:06]} 11. Nf3 {[%emt 0:00:31]} Bg4 {[%emt 0:04:17]} 12. O-O {[%emt 0:01:38]} Nbd7 {[%emt 0:01:19]} 13. d6 {[%emt 0:11:27]} Bf8 {[%emt 0:01:10]} 14. h3 {[%emt 0:05:39]} Bh5 {[%emt 0:01:55]} 15. Nb5 {[%emt 0:03:52]} Qb6 {[%emt 0:03:39]} 16. Nc7 {[%emt 0:02:34]} Bxd6 {[%emt 0:00:31]} 17. Nxa8 {[%emt 0:00:10]} Rxa8 {[%emt 0:00:02]} 18. Nh4 {[%emt 0:09:09]} Bg6 {[%emt 0:00:35]} 19. Nxg6 {[%emt 0:04:01]} hxg6 {[%emt 0:01:22]} 20. Bf3 {[%emt 0:01:06]} Be5 {[%emt 0:03:00]} 21. Be3 {[%emt 0:09:38]} Re8 {[%emt 0:01:41]} 22. Rb1 {[%emt 0:03:55]} Bb8 {[%emt 0:13:04]} 23. Re1 {[%emt 0:01:13]} a5 {[%emt 0:01:49]} 24. Bf2 {[%emt 0:02:02]} Rd8 {[%emt 0:04:46]} 25. Qe2 {[%emt 0:02:09]} Qc7 {[%emt 0:00:40]} 26. Kf1 {[%emt 0:01:06]} Qh2 {[%emt 0:03:01]} 27. Bg1 {[%emt 0:02:06]} Qh1 {[%emt 0:01:18]} 28. Qf2 {[%emt 0:04:29]} Ne5 {[%emt 0:03:36]} 29. Rbd1 {[%emt 0:00:31]} Rf8 {[%emt 0:18:23]} 30. Bxb7 {[%emt 0:08:39]} Nh5 {[%emt 0:03:53]} 31. Re3 {[%emt 0:01:11]} Nxc4 {[%emt 0:04:52]} 32. Rc3 {[%emt 0:03:17]} Nd6 {[%emt 0:01:20]} 33. Bd5 {[%emt 0:07:26]} Nf5 {[%emt 0:00:00]} 1-0